bitfinex-derivatives/quotes_SOLF0:USTF0_20240906
["timestamp","ask_amount","ask_price","bid_price","bid_amount"]
[1725635903339,44.82,127.97,127.78,1.4011]
[1725635903340,44.82,127.93,127.83,5.3099]
[1725635903542,44.82,127.93,127.78,1.4011]
[1725635903543,44.82,127.89,127.78,47.6181]
[1725635903744,44.82,127.96,127.78,47.6181]
[1725635903745,44.82,127.87,127.78,2.7981]
[1725635903947,3.9125,127.86,127.78,6.80642879]
[1725635904138,44.82,127.9,127.78,6.80642879]
[1725635904339,44.82,127.9,127.87,0.05151047]
[1725635904340,3.9116,127.88,127.87,0.05151047]
[1725635905138,3.9113,127.89,127.81,44.82]
[1725635905339,44.82,127.96,127.79,46.1377]
[1725635905340,44.82,127.9,127.79,46.1377]
[1725635905649,44.82,127.9,127.86,0.05645504]
[1725635905650,3.9119,127.87,127.86,0.05645504]
[1725635906149,44.82,127.88,127.77,1.3534]
[1725635906455,44.82,127.88,127.53,82.94833025]
[1725635906456,44.82,127.9,127.65,3.88627154]
[1725635906457,44.82,127.78,127.65,3.88627154]
[1725635906663,44.82,127.78,127.66,44.82]
[1725635906664,3.9159,127.75,127.66,44.82]
[1725635906943,44.82,127.78,127.66,48.68457712]
[1725635907159,0.05339325,127.86,127.66,48.68457712]
[1725635907160,3.9159,127.75,127.66,48.68457712]
[1725635907357,44.82,127.76,127.66,47.18457712]
[1725635907571,44.82,127.83,127.58,1.3177]
[1725635907572,44.82,127.74,127.58,1.3177]
[1725635907743,44.82,127.83,127.6,44.82]
[1725635907744,3.9169,127.71,127.6,44.82]
[1725635908051,44.82,127.74,127.62,44.82]
[1725635908251,3.97501937,127.72,127.64,3.9189]
[1725635908549,0.05851937,127.72,127.66,44.82]
[1725635908743,0.05851937,127.72,127.66,48.73956531]
[1725635909050,44.82,127.77,127.64,44.82]
[1725635909350,44.82,127.77,127.58,6.67065666]
[1725635909351,44.82,127.69,127.58,6.67065666]
[1725635909651,3.89645144,127.81,127.59,44.82]
[1725635909838,0.0578467,127.7,127.59,44.82]
[1725635910040,0.0578467,127.7,127.64,44.82]
[1725635910239,0.0578467,127.7,127.58,6.67065666]
[1725635910240,0.0578467,127.7,127.66,44.82]
[1725635910446,0.0578467,127.7,127.68,44.82]
[1725635910643,44.82,127.83,127.69,44.82]
[1725635910840,44.82,127.83,127.73,44.82]
[1725635911038,44.82,127.83,127.69,49.94043677]
[1725635911245,3.9135,127.82,127.75,3.9155]
[1725635911443,44.82,127.85,127.73,44.82]
[1725635911647,44.82,127.85,127.71,44.82]
[1725635911845,140.83060153,127.9,127.79,44.82]
[1725635912246,140.83060153,127.9,127.79,3.8920515]
[1725635912448,140.83060153,127.9,127.78,44.86925104]
[1725635912647,140.83060153,127.9,127.78,0.04925104]
[1725635912648,44.82,127.88,127.78,0.04925104]
[1725635912850,96.01060153,127.9,127.78,0.04925104]
[1725635912851,44.82,127.85,127.78,0.04925104]
[1725635913053,44.82,127.85,127.76,3.94608602]
[1725635913355,44.82,127.89,127.77,44.82]
[1725635913547,44.82,127.89,127.77,48.66349874]
[1725635913945,44.82,127.89,127.79,44.82]
[1725635914156,44.82,127.96,127.77,48.66349874]
[1725635914157,44.82,127.94,127.83,44.82]
[1725635914466,44.82,128.09,127.77,48.66349874]
[1725635914467,44.82,127.98,127.87,44.82]
[1725635914657,44.82,127.96,127.85,44.82]
[1725635914845,44.82,128.09,127.83,1.3658]
[1725635914846,44.82,127.94,127.83,46.1858]
[1725635915253,44.82,127.94,127.87,0.05199214]
[1725635915453,48.69158242,128.03,127.87,0.05199214]
[1725635915454,44.82,127.96,127.87,0.05199214]
[1725635915647,44.82,127.98,127.87,0.05199214]
[1725635915850,44.82,127.96,127.87,0.05199214]
[1725635916162,3.83207647,127.96,127.79,3.90209196]
[1725635916456,53.26581466,127.95,127.84,44.82]
[1725635916653,0.05038702,127.93,127.87,44.82]
[1725635917262,44.82,128.0,127.89,44.82]
[1725635917460,44.82,127.99,127.86,44.82]
[1725635917656,3.9082,128.0,127.91,44.82]
[1725635917867,0.05843373,127.91,127.89,44.82]
[1725635918061,44.82,128.06,127.89,89.64]
[1725635918259,44.82,128.06,127.96,3.9092]
[1725635918465,44.82,128.06,127.97,3.96611148]
[1725635918657,44.82,128.09,127.98,44.82]
[1725635918857,3.9059,128.07,128.0,44.82]
[1725635919067,280.6231,128.22,127.97,3.86993962]
[1725635919068,44.82,128.13,128.02,44.82]
[1725635919268,44.82,128.17,128.04,44.82]
[1725635919469,44.82,128.17,128.06,44.82]
[1725635919661,44.82,128.17,128.06,48.7927575]
[1725635919860,44.82,128.28,128.06,48.7927575]
[1725635919861,44.82,128.2,128.08,44.82]
[1725635920065,11.63547365,128.38,128.08,44.82]
[1725635920372,44.82,128.27,128.16,44.82]
[1725635920567,44.82,128.3,128.18,44.82]
[1725635920772,44.82,128.3,128.18,48.68368454]
[1725635920972,44.82,128.32,128.22,0.05392529]
[1725635921267,44.82,128.35,128.22,0.05392529]
[1725635921268,44.82,128.29,128.22,0.05392529]
[1725635921573,44.82,128.32,128.22,0.05392529]
[1725635921762,44.82,128.3,128.18,48.68368454]
[1725635922067,44.82,128.28,128.16,44.82]
[1725635922261,44.82,128.28,128.26,0.04985178]
[1725635922467,3.9,128.27,128.26,0.04985178]
[1725635922666,89.64,128.28,128.16,3.90548448]
[1725635922860,44.82,128.25,128.13,44.82]
[1725635923267,44.82,128.27,128.16,44.82]
[1725635923460,3.89808748,128.46,128.22,44.82]
[1725635923663,44.82,128.34,128.24,44.82]
[1725635923969,44.82,128.34,128.17,1.378]
[1725635923970,3.8976,128.35,128.27,3.8995]
[1725635924171,44.82,128.35,128.24,3.88519827]
[1725635924369,0.05351424,128.3,128.28,44.82]
[1725635924576,3.8961,128.39,128.3,3.8985]
[1725635924775,44.82,128.39,128.28,48.70862403]
[1725635925067,44.82,128.37,128.28,0.05387577]
[1725635925472,44.82,128.35,128.28,0.05387577]
[1725635925674,44.82,128.35,128.25,3.81064881]
[1725635925870,44.82,128.41,128.26,44.82]
[1725635925871,44.82,128.37,128.26,44.82]
[1725635926070,0.77995309,128.45,128.28,48.7193]
[1725635926071,3.8973,128.36,128.28,48.7193]
[1725635926382,0.77995309,128.45,128.28,48.7193]
[1725635926383,44.82,128.41,128.31,44.82]
[1725635926877,44.82,128.37,128.3,0.0532384]
[1725635927265,44.82,128.41,128.3,44.82]
[1725635927467,44.82,128.44,128.33,44.82]
[1725635927665,0.77995309,128.45,128.35,44.82]
[1725635927875,0.77995309,128.45,128.37,44.82]
[1725635928169,0.77995309,128.45,128.35,44.82]
[1725635928377,3.8955,128.41,128.35,44.82]
[1725635928576,3.8955,128.41,128.34,7.85432462]
[1725635928577,44.82,128.44,128.31,48.7599704]
[1725635928772,44.82,128.42,128.31,44.82]
[1725635928974,44.82,128.35,128.21,3.83599076]
[1725635929277,44.82,128.33,128.22,47.4206]
[1725635929773,44.78,128.33,128.22,47.4206]
[1725635929967,44.82,128.41,128.22,47.4206]
[1725635930278,44.82,128.33,128.26,0.05898895]
[1725635930575,3.8992,128.29,128.26,0.05898895]
[1725635930776,44.82,128.31,128.23,3.9009]
[1725635930974,3.8984,128.32,128.26,3.9]
[1725635931278,44.82,128.36,128.24,44.82]
[1725635931471,3.8992,128.29,128.26,0.05080388]
[1725635931780,44.82,128.34,128.26,0.05080388]
[1725635931979,44.82,128.31,128.26,0.05080388]
[1725635932275,44.82,128.31,128.22,2.6006]
[1725635932276,44.82,128.32,128.22,2.6006]
[1725635932471,44.82,128.34,128.22,2.6006]
[1725635932670,44.82,128.34,128.27,0.05338818]
[1725635932866,44.82,128.38,128.28,44.82]
[1725635933476,3.90490341,128.46,128.28,44.82]
[1725635933477,44.82,128.41,128.28,44.82]
[1725635933778,44.82,128.41,128.27,0.05338818]
[1725635933779,44.82,128.43,128.32,44.82]
[1725635933976,44.82,128.34,128.08,7.811]
[1725635934277,44.82,128.29,128.18,44.82]
[1725635934472,3.9003,128.26,128.18,44.82]
[1725635934677,44.82,128.25,128.16,1.4018]
[1725635934976,44.82,128.27,128.16,1.4018]
[1725635934977,44.82,128.27,128.2,0.04958033]
[1725635935171,3.91159051,128.33,128.2,0.04958033]
[1725635935172,44.82,128.23,128.2,0.04958033]
[1725635935578,44.82,128.25,128.2,0.04958033]
[1725635935882,3.91159051,128.33,128.16,44.82]
[1725635935883,44.82,128.27,128.16,44.82]
[1725635936174,44.82,128.29,128.18,44.82]
[1725635936381,44.82,128.27,128.16,44.82]
[1725635936587,44.82,128.27,128.09,1.4018]
[1725635936588,44.82,128.25,128.21,0.05424631]
[1725635937077,3.9013,128.22,128.21,0.00984631]
[1725635937283,44.82,128.23,128.09,1.4018]
[1725635937480,44.82,128.23,128.1,44.82]
[1725635937679,44.82,128.23,128.13,3.9038]
[1725635937680,3.9025,128.18,128.13,3.9038]
[1725635937872,44.82,128.23,128.13,3.90587428]
[1725635938078,44.82,128.23,128.1,44.82]
[1725635938472,44.82,128.21,128.1,44.82]
[1725635938678,3.9022,128.19,128.13,3.9039]
[1725635938874,3.9022,128.19,128.1,44.82]
[1725635939178,44.82,128.23,128.13,3.88762368]
[1725635939480,44.82,128.23,128.13,48.70762368]
[1725635939681,3.9019,128.2,128.13,44.82]
[1725635939871,44.82,128.23,128.13,44.82]
[1725635940079,44.82,128.23,128.13,48.74353706]
[1725635940383,44.82,128.28,128.17,44.82]
[1725635940680,44.82,128.28,128.09,1.4018]
[1725635940681,0.05879267,128.18,128.09,46.2218]
[1725635940981,0.05879267,128.18,128.09,1.4018]
[1725635941185,44.82,128.19,128.1,3.9048]
[1725635941186,3.9036,128.15,128.1,3.9048]
[1725635941386,44.82,128.15,127.92,225.0]
[1725635941583,44.82,128.11,127.99,46.2111]
[1725635941879,44.82,128.15,128.03,44.82]
[1725635942282,44.82,128.12,128.01,44.82]
[1725635942477,44.82,128.1,127.99,50.03737619]
[1725635942676,44.82,128.15,127.98,1.3501]
[1725635942677,3.9072,128.03,127.98,5.2586]
[1725635942878,44.8755669,128.06,127.89,3.96450476]
[1725635942879,44.82,128.04,127.9,1.3501]
[1725635943082,44.82,128.02,127.91,44.82]
[1725635943290,44.82,127.98,127.9,1.3501]
[1725635943486,44.82,127.98,127.89,1.3908]
[1725635943682,3.9096,127.95,127.89,1.3908]
[1725635943879,44.82,128.09,127.89,46.2108]
[1725635943880,44.82,128.02,127.89,46.2108]
[1725635944086,44.82,128.02,127.91,44.82]
[1725635944387,44.82,128.02,127.86,5.23394285]
[1725635944388,0.05557624,127.95,127.86,1.2792]
[1725635944598,44.82,127.94,127.83,7.604407]
[1725635944887,44.87557624,127.95,127.84,44.82]
[1725635945088,0.05557624,127.95,127.86,44.82]
[1725635945280,3.9092,127.96,127.89,44.82]
[1725635945677,44.82,128.02,127.91,44.82]
[1725635945879,44.82,128.0,127.88,44.82]
[1725635946187,44.82,127.98,127.88,44.82]
[1725635946385,44.82,127.98,127.78,2.711]
[1725635946386,44.82,127.96,127.84,44.82]
[1725635946588,48.79837489,128.03,127.84,44.82]
[1725635946589,44.82,127.94,127.84,44.82]
[1725635946888,48.79837489,128.03,127.86,44.82]
[1725635946889,0.05835079,127.95,127.86,44.82]
[1725635947094,0.05835079,127.95,127.9,44.82]
[1725635947396,44.82,128.04,127.92,44.82]
[1725635947789,44.82,128.04,127.93,3.81404454]
[1725635947993,44.82,128.07,127.96,44.82]
[1725635948192,44.82,128.09,127.96,44.82]
[1725635948381,44.82,128.09,127.98,3.9085]
[1725635948578,44.82,128.09,127.96,44.82]
[1725635948787,44.82,128.09,127.94,44.82]
[1725635948996,3.9077,128.01,128.0,0.05644005]
[1725635949189,48.68759831,128.01,127.86,44.82]
[1725635949384,3.9095,127.95,127.89,3.911]
[1725635949586,44.82,127.96,127.87,4.00675992]
[1725635949886,3.9107,127.92,127.84,48.790015]
[1725635950084,3.9107,127.92,127.79,2.6387]
[1725635950085,44.82,127.94,127.82,44.82]
[1725635950293,44.82,127.88,127.79,2.6387]
[1725635950488,44.82,127.88,127.82,3.9132]
[1725635950489,3.9117,127.88,127.82,3.9132]
[1725635950692,44.82,127.89,127.79,2.6387]
[1725635950890,0.05787667,127.89,127.79,2.6387]
[1725635951088,0.05787667,127.89,127.8,44.82]
[1725635951390,0.05787667,127.89,127.79,2.6387]
[1725635951581,44.82,127.91,127.79,2.6387]
[1725635951783,4.00919183,127.94,127.79,2.6387]
[1725635951784,44.82,127.87,127.79,2.6387]
[1725635951989,44.82,127.96,127.82,3.9132]
[1725635951990,3.9116,127.89,127.82,3.9132]
[1725635952183,44.82,127.91,127.8,44.82]
[1725635952389,3.83426662,127.93,127.79,2.6387]
[1725635952594,44.82,127.91,127.8,44.82]
[1725635952791,44.82,127.91,127.79,2.6387]
[1725635952990,44.82,127.94,127.83,44.82]
[1725635953297,3.91997936,128.05,127.79,2.6387]
[1725635953298,44.82,127.85,127.79,2.6387]
[1725635953590,44.82,127.85,127.53,564.47585948]
[1725635953591,44.82,127.83,127.73,3.9159]
[1725635953793,44.82,127.83,127.72,3.90744562]
[1725635953794,44.82,127.85,127.75,44.82]
[1725635953991,44.82,127.87,127.75,44.82]
[1725635954386,44.82,127.82,127.72,3.87060921]
[1725635954693,0.05065323,127.79,127.75,44.82]
[1725635954991,3.92192489,127.94,127.69,44.82]
[1725635954992,44.82,127.91,127.77,44.82]
[1725635955294,102.98279684,127.95,127.82,44.82]
[1725635955688,102.98279684,127.95,127.86,3.9122]
[1725635955885,44.82,128.09,127.89,44.82]
[1725635956082,52.627,128.15,127.94,44.82]
[1725635956083,44.82,128.04,127.94,44.82]
[1725635956796,44.82,128.02,127.89,3.92182703]
[1725635956994,44.82,128.04,127.92,44.82]
[1725635957184,44.82,128.04,127.89,48.69680629]
[1725635957387,44.82,128.02,127.89,44.82]
[1725635957592,44.82,127.94,127.83,2.6746]
[1725635957994,44.82,127.96,127.78,44.82]
[1725635957995,44.82,127.9,127.78,44.82]
[1725635958407,44.82,127.9,127.76,2.5758]
[1725635958408,44.82,127.85,127.76,2.5758]
[1725635958692,44.82,127.85,127.76,3.98995107]
[1725635958897,44.82,127.87,127.83,0.05315264]
[1725635959093,44.82,127.85,127.83,0.05315264]
[1725635959287,44.82,127.87,127.83,0.05315264]
[1725635959493,44.82,127.9,127.83,0.05315264]
[1725635959701,44.82,127.85,127.73,44.82]
[1725635959894,3.9142,127.8,127.73,44.82]
[1725635960089,3.9142,127.8,127.71,3.9167]
[1725635960090,44.82,127.8,127.7,2.5758]
[1725635960297,44.82,127.78,127.7,2.5758]
[1725635960491,44.82,127.82,127.71,44.82]
[1725635960687,44.82,127.85,127.71,44.82]
[1725635960889,44.82,127.85,127.73,44.82]
[1725635961194,44.82,127.78,127.7,2.5758]
[1725635961792,44.82,127.8,127.7,2.5758]
[1725635961992,3.9156,127.75,127.68,3.9177]
[1725635962192,44.82,127.78,127.65,44.82]
[1725635962403,44.82,127.78,127.66,3.92547228]
[1725635962596,44.82,127.8,127.68,44.82]
[1725635962900,44.82,127.8,127.7,44.82]
[1725635963200,44.82,127.78,127.66,44.82]
[1725635964293,44.82,127.75,127.64,50.0555]
[1725635964500,44.82,127.8,127.68,44.82]
[1725635965100,44.82,127.83,127.64,1.3168]
[1725635965303,44.82,127.83,127.68,44.82]
[1725635965304,44.82,127.79,127.68,44.82]
[1725635965523,44.82,127.77,127.66,44.82]
[1725635966101,3.85932367,127.84,127.68,44.82]
[1725635966102,44.82,127.79,127.68,44.82]
[1725635966296,3.9156,127.75,127.69,3.9174]
[1725635966494,44.82,127.79,127.68,44.82]
[1725635966802,44.82,127.77,127.67,3.9178]
[1725635966998,44.82,127.77,127.64,46.1368]
[1725635967310,44.82,127.77,127.57,44.82]
[1725635967311,44.82,127.77,127.62,44.82]
[1725635967312,3.9181,127.67,127.62,44.82]
[1725635967506,3.9181,127.67,127.6,47.5241]
[1725635967699,44.82,127.73,127.6,47.5241]
[1725635967905,0.05207114,127.73,127.55,1.3525]
[1725635968097,44.87207114,127.73,127.6,44.82]
[1725635968298,0.05207114,127.73,127.62,44.82]
[1725635968508,0.05207114,127.73,127.65,0.05618729]
[1725635968700,231.84745129,127.8,127.65,0.05618729]
[1725635968701,44.82,127.77,127.67,44.82]
[1725635968895,3.916,127.74,127.67,44.82]
[1725635969204,3.916,127.74,127.59,3.94301096]
[1725635969205,0.0538662,127.69,127.59,48.76301096]
[1725635969403,0.0538662,127.69,127.49,1.03029092]
[1725635969404,44.82,127.68,127.49,1.03029092]
[1725635969600,44.82,127.68,127.55,46.1725]
[1725635969807,44.82,127.68,127.56,6.5539813]
[1725635970002,44.82,127.68,127.57,44.82]
[1725635970198,44.82,127.68,127.56,2.6611]
[1725635970412,3.84980112,127.73,127.49,1.03029092]
[1725635970413,44.82,127.6,127.49,1.03029092]
[1725635970706,44.82,127.63,127.49,1.03029092]
[1725635970900,44.82,127.63,127.51,44.82]
[1725635971405,44.82,127.63,127.49,1.03029092]
[1725635971703,3.97118508,127.66,127.49,1.03029092]
[1725635971904,44.82,127.6,127.49,1.03029092]
[1725635972098,44.82,127.64,127.49,1.03029092]
[1725635972099,44.82,127.58,127.49,1.03029092]
[1725635972297,44.82,127.54,127.53,5.36355948]
[1725635972499,44.82,127.54,127.44,8.72388843]
[1725635972500,89.64,127.54,127.44,8.72388843]
[1725635972705,44.82,127.58,127.44,8.72388843]
[1725635972706,94.4648,127.45,127.44,5.81481254]
[1725635972906,94.4648,127.45,127.26,5.78085375]
[1725635972907,90.54,127.45,127.38,3.2625735]
[1725635973097,45.27,127.39,127.26,5.78085375]
[1725635973303,45.27,127.36,127.26,5.78085375]
[1725635973503,90.54,127.33,127.26,5.78085375]
[1725635973705,90.54,127.28,127.17,6.76638142]
[1725635974012,120.55004192,127.51,127.17,2.96638142]
[1725635974013,45.27,127.38,127.17,2.96638142]
[1725635974215,0.77912375,127.37,127.17,2.96638142]
[1725635974410,45.27,127.32,127.17,2.96638142]
[1725635974615,45.27,127.21,127.16,2.533855]
[1725635974915,3.9335,127.17,127.16,2.473855]
[1725635975209,1.0,127.31,127.16,2.473855]
[1725635975403,45.27,127.22,127.16,2.473855]
[1725635975707,45.27,127.23,127.16,2.473855]
[1725635975906,45.27,127.25,127.16,2.473855]
[1725635976105,45.27,127.27,127.16,2.473855]
[1725635976414,71.22700018,127.71,127.26,45.27]
[1725635976415,45.27,127.42,127.26,45.27]
[1725635976605,45.27,127.4,127.27,4.0962]
[1725635976908,3.88454829,127.46,127.27,49.3662]
[1725635977105,149.77610345,127.51,127.32,45.27]
[1725635977106,45.27,127.45,127.32,45.27]
[1725635977309,149.77610345,127.51,127.34,45.27]
[1725635977310,45.27,127.48,127.34,45.27]
[1725635977703,45.27,127.48,127.37,45.27]
[1725635978006,45.27,127.5,127.37,45.27]
[1725635978208,45.27,127.55,127.43,45.27]
[1725635978601,45.27,127.51,127.38,46.5571]
[1725635978802,45.27,127.53,127.41,45.27]
[1725635979002,45.27,127.5,127.38,1.2871]
[1725635979207,45.27,127.44,127.31,45.27]
[1725635979411,3.93797114,127.6,127.41,45.27]
[1725635979615,0.05970758,127.46,127.41,45.27]
[1725635979804,0.05970758,127.46,127.32,2.2871]
[1725635980005,0.05970758,127.46,127.39,45.27]
[1725635980205,45.27,127.52,127.39,45.27]
[1725635980415,45.27,127.44,127.32,1.2871]
[1725635980611,45.27,127.58,127.36,45.27]
[1725635980810,45.27,127.5,127.32,1.2871]
[1725635981012,45.27,127.49,127.36,45.27]
[1725635981311,45.27,127.49,127.37,45.27]
[1725635981609,45.27,127.49,127.32,1.2871]
[1725635981610,45.27,127.42,127.32,1.2871]
[1725635981818,45.27,127.39,127.27,2.689]
[1725635982016,45.27,127.37,127.27,2.689]
[1725635982308,45.27,127.35,127.21,49.28823801]
[1725635982509,45.27,127.35,127.24,45.27]
[1725635982702,45.27,127.38,127.24,45.27]
[1725635982703,45.27,127.38,127.32,3.9286]
[1725635982909,45.27,127.43,127.31,45.27]
[1725635983106,45.27,127.39,127.27,45.27]
[1725635983308,3.98095944,127.49,127.21,3.89345289]
[1725635983309,45.27,127.41,127.3,45.27]
[1725635983509,45.27,127.43,127.3,45.27]
[1725635983713,0.05036819,127.36,127.3,45.27]
[1725635983913,0.05036819,127.36,127.24,45.27]
[1725635983914,0.05036819,127.36,127.32,45.27]
[1725635984108,45.27,127.43,127.32,45.27]
[1725635984303,45.27,127.45,127.32,45.27]
[1725635984715,45.27,127.43,127.24,45.27]
[1725635984913,45.27,127.41,127.3,45.27]
[1725635985114,3.95297817,127.48,127.24,45.27]
[1725635985115,45.27,127.43,127.32,45.27]
[1725635985421,45.27,127.45,127.34,45.27]
[1725635985608,0.05141312,127.4,127.39,45.27]
[1725635985809,45.27,127.51,127.39,45.27]
[1725635986207,45.27,127.43,127.38,0.05695999]
[1725635986517,45.27,127.51,127.38,0.05695999]
[1725635986518,45.27,127.41,127.38,0.05695999]
[1725635986714,49.15956749,127.45,127.38,0.05695999]
[1725635986716,45.27,127.39,127.38,0.05695999]
[1725635986927,45.27,127.39,127.24,3.91156686]
[1725635986928,3.9289,127.32,127.24,3.9313]
[1725635987112,49.15956749,127.45,127.27,45.27]
[1725635987113,45.27,127.37,127.27,45.27]
[1725635987315,45.27,127.41,127.3,45.27]
[1725635987624,45.27,127.41,127.23,45.27]
[1725635987625,45.27,127.34,127.23,45.27]
[1725635988008,45.27,127.36,127.19,4.0712]
[1725635988009,45.27,127.3,127.19,4.0712]
[1725635988322,45.27,127.36,127.19,4.0712]
[1725635988323,45.27,127.32,127.19,4.0712]
[1725635988512,45.27,127.33,127.22,45.27]
[1725635988715,49.15956749,127.45,127.22,49.211816]
[1725635988716,45.27,127.35,127.22,49.211816]
[1725635988912,3.9285,127.34,127.24,45.27]
[1725635989208,49.15956749,127.45,127.19,4.0712]
[1725635989209,0.04973447,127.26,127.19,4.0712]
[1725635989408,0.04973447,127.26,127.19,4.0312]
[1725635989409,49.25043447,127.26,127.19,4.0312]
[1725635989612,0.04973447,127.26,127.19,4.0312]
[1725635989827,45.27,127.28,127.19,4.0312]
[1725635990121,49.22202999,127.38,127.23,45.27]
[1725635990122,45.27,127.34,127.23,45.27]
[1725635990310,99.57819353,127.39,127.23,45.27]
[1725635990311,99.57819353,127.39,127.28,45.27]
[1725635990525,45.27,127.4,127.28,45.27]
[1725635990710,45.27,127.4,127.23,3.97069627]
[1725635990711,45.27,127.36,127.23,45.27]
[1725635991220,0.04997788,127.35,127.25,45.27]
[1725635991516,3.9285,127.34,127.27,3.9301]
[1725635991716,45.27,127.31,127.19,4.0312]
[1725635991909,45.27,127.31,127.2,45.27]
[1725635992116,49.21592611,127.38,127.19,4.0312]
[1725635992117,45.27,127.27,127.19,4.0312]
[1725635992516,45.27,127.23,127.16,2.473855]
[1725635992710,0.05161286,127.26,127.16,2.473855]
[1725635992711,45.27,127.25,127.16,2.473855]
[1725635992913,45.27,127.19,127.16,2.473855]
[1725635993119,3.9335,127.17,127.16,2.473855]
[1725635993314,45.27,127.21,127.16,2.473855]
[1725635993521,45.27,127.17,127.16,2.473855]
[1725635993714,45.27,127.19,127.16,2.473855]
[1725635994013,45.27,127.17,127.16,2.473855]
[1725635994218,228.0,127.45,127.16,2.473855]
[1725635994424,45.27,127.17,127.16,2.473855]
[1725635994938,45.27,127.17,127.08,6.21987114]
[1725635994939,45.27,127.17,127.1,0.71825907]
[1725635994940,90.54,127.17,127.1,0.71825907]
[1725635995117,90.54,127.17,127.04,1.00935137]
[1725635995118,45.27,127.11,127.04,1.00935137]
[1725635995431,45.27,127.11,126.94,49.91429805]
[1725635995432,7.8627,127.24,126.94,49.91429805]
[1725635995433,45.27,127.05,126.97,3.1043264]
[1725635995621,45.27,126.98,126.94,3.88862445]
[1725635995926,117.82798417,127.05,126.94,3.88862445]
[1725635996219,45.27,127.01,126.94,3.88862445]
[1725635996619,0.05566033,127.02,126.94,3.88862445]
[1725635996828,0.05566033,127.02,126.94,49.15862445]
[1725635997031,3.89302701,127.06,127.01,45.27]
[1725635997326,3.89302701,127.06,126.96,0.04994119]
[1725635997525,45.27,127.02,126.96,0.04994119]
[1725635997726,45.27,127.0,126.96,0.04994119]
[1725635998027,45.27,127.0,126.94,3.88862445]
[1725635998028,45.27,126.97,126.94,3.88862445]
[1725635998228,11.83546566,127.18,126.94,3.88862445]
[1725635998525,45.27,127.19,126.97,45.27]
[1725635998526,45.27,127.09,126.97,45.27]
[1725635999025,3.936,127.09,127.01,3.9381]
[1725635999226,3.8469347,127.18,127.02,45.27]
[1725635999227,45.27,127.14,127.02,45.27]
[1725635999414,45.27,127.16,126.95,4.0088487]
[1725635999613,45.27,127.14,127.01,45.27]
[1725635999820,45.27,127.09,126.96,45.27]
[1725636000014,45.27,127.09,127.0,3.9387]
[1725636000218,45.27,127.04,126.94,3.88862445]
[1725636000417,45.27,127.19,126.95,49.22159968]
[1725636000625,3.89451271,127.26,127.04,45.27]
[1725636000817,46.51831399,127.25,127.11,45.27]
[1725636001016,45.27,127.23,127.09,45.27]
[1725636001235,45.27,127.18,127.06,45.27]
[1725636001524,3.9313,127.25,127.17,3.9334]
[1725636001724,3.89844974,127.36,127.21,45.27]
[1725636001920,45.27,127.34,127.21,45.27]
[1725636002114,46.52044966,127.34,127.18,45.27]